[Event "USA Junior-ch 2022"]
[Site "Saint Louis"]
[Date "2022.07.14"]
[Round "7.4"]
[White "Liang, Awonder"]
[Black "Espinosa, Pedro"]
[Result "1-0"]
[ECO "A05"]
[WhiteElo "2625"]
[BlackElo "2130"]
[Annotator "ChessBase"]
[PlyCount "83"]
[EventDate "2022.07.07"]
[EventType "tourn"]
[EventCountry "USA"]
[SourceTitle "playchess.com"]
[Source "ChessBase"]
[SourceQuality "1"]
[TimeControl "40/5400+30:1800+30"]

1. e4 {[%emt 0:00:01]} c5 {[%emt 0:00:11]} 2. Nf3 {[%emt 0:00:01]} d6 {[%emt 0:00:23]} 3. d3 {[%emt 1:31:58]} Nc6 {[%emt 0:01:40]} 4. g3 {[%emt 0:00:00]} Nf6 {[%emt 0:01:21]} 5. Bg2 {[%emt 0:00:00]} g6 {[%emt 0:01:04]} 6. O-O {[%emt 0:00:00]} Bg7 {[%emt 0:00:53]} 7. Re1 {[%emt 0:00:00]} O-O {[%emt 0:01:05]} 8. c3 {[%emt 0:00:00]} e5 {[%emt 0:02:38]} 9. a3 {[%emt 0:00:00]} h6 {[%emt 0:04:22]} 10. b4 {[%emt 0:00:00]} Be6 {[%emt 0:01:58]} 11. Bb2 {[%emt 0:00:00]} Re8 {[%emt 0:05:27]} 12. Nbd2 {[%emt 0:00:00]} Qd7 {[%emt 0:03:58]} 13. Nb3 {[%emt 0:00:00]} b6 {[%emt 0:02:39]} 14. d4 {[%emt 0:00:00]} cxd4 {[%emt 0:05:53]} 15. cxd4 {[%emt 0:00:00]} Nxd4 {[%emt 0:03:54]} 16. Nbxd4 {[%emt 0:00:00]} exd4 {[%emt 0:00:08]} 17. e5 {[%emt 0:00:00]} Nd5 {[%emt 0:02:26]} 18. Nxd4 {[%emt 0:00:00]} dxe5 {[%emt 0:16:11]} 19. Nxe6 {[%emt 0:00:00]} fxe6 {[%emt 0:00:15]} 20. Bxe5 {[%emt 0:00:00]} Bxe5 {[%emt 0:01:51]} 21. Rxe5 {[%emt 0:00:00]} Rad8 {[%emt 0:00:21]} 22. Qg4 {[%emt 0:00:00]} Kf7 {[%emt 0:03:18]} 23. Rae1 {[%emt 0:00:00]} Nf6 {[%emt 0:02:03]} 24. Qf3 {[%emt 0:00:00]} Qd3 {[%emt 0:01:35]} 25. R5e3 {[%emt 0:00:00]} Qf5 {[%emt 0:02:24]} 26. Qe2 {[%emt 0:00:00]} Rd6 {[%emt 0:01:39]} 27. Rf3 {[%emt 0:00:00]} Qg5 {[%emt 0:02:38]} 28. h4 {[%emt 0:00:00]} Qh5 {[%emt 0:00:43]} 29. Qa6 {[%emt 0:00:00]} Re7 {[%emt 0:05:04]} 30. Qc8 {[%emt 0:00:00]} g5 {[%emt 0:01:22]} 31. Qc3 {[%emt 0:00:00]} Qg6 {[%emt 0:01:29]} 32. h5 {[%emt 0:00:00]} Qg7 {[%emt 0:01:06]} 33. Bh3 {[%emt 0:00:00]} Rd5 {[%emt 0:02:33]} 34. Bxe6+ {[%emt 0:00:00]} Rxe6 {[%emt 0:01:38]} 35. Qc7+ {[%emt 0:00:00]} Kg8 {[%emt 0:01:24]} 36. Qxg7+ {[%emt 0:00:00]} Kxg7 {[%emt 0:00:11]} 37. Rxe6 {[%emt 0:00:00]} Nxh5 {[%emt 0:00:35]} 38. Rc3 {[%emt 0:00:00]} Nf6 {[%emt 0:01:01]} 39. Rc7+ {[%emt 0:00:00]} Kg6 {[%emt 0:00:07]} 40. Rxa7 {[%emt 0:00:00]} b5 {[%emt 0:00:10]} 41. Raa6 {[%emt 0:00:00]} Rf5 {[%emt 0:30:13]} 42. a4 {[%emt 0:49:30]} 1-0

[Event "USA Junior-ch 2022"]
[Site "Saint Louis"]
[Date "2022.07.14"]
[Round "7.5"]
[White "Jacobson, Brandon"]
[Black "Hong, Andrew"]
[Result "0-1"]
[ECO "E48"]
[WhiteElo "2544"]
[BlackElo "2504"]
[Annotator "ChessBase"]
[PlyCount "42"]
[EventDate "2022.07.07"]
[EventType "tourn"]
[EventCountry "USA"]
[SourceTitle "playchess.com"]
[Source "ChessBase"]
[SourceQuality "1"]
[TimeControl "40/5400+30:1800+30"]

1. d4 {[%emt 0:00:04]} Nf6 {[%emt 0:00:25]} 2. c4 {[%emt 0:00:08]} e6 {[%emt 0:00:05]} 3. Nc3 {[%emt 0:00:09]} Bb4 {[%emt 0:00:06]} 4. e3 {[%emt 0:00:15]} O-O {[%emt 0:00:12]} 5. Bd3 {[%emt 0:00:23]} d5 {[%emt 0:00:39]} 6. cxd5 {[%emt 0:00:07]} exd5 {[%emt 0:00:05]} 7. Nge2 {[%emt 0:00:05]} Re8 {[%emt 0:04:17]} 8. Bd2 {[%emt 0:00:24]} Nbd7 {[%emt 0:04:30]} 9. Qc2 {[%emt 0:13:03]} c5 {[%emt 0:07:04]} 10. dxc5 {[%emt 0:06:06]} Bxc5 {[%emt 0:07:48]} 11. O-O {[%emt 0:00:14]} Ne5 {[%emt 0:01:44]} 12. Rfd1 {[%emt 0:21:47]} Nfg4 {[%emt 0:12:17]} 13. Be1 {[%emt 0:21:25]} Qh4 {[%emt 0:15:11]} 14. h3 {[%emt 0:02:20]} Nf3+ {[%emt 0:18:48]} 15. gxf3 {[%emt 0:00:18]} Nxe3 {[%emt 0:08:20]} 16. Qa4 {[%emt 0:02:48]} Qg5+ {[%emt 0:00:46]} 17. Ng3 {[%emt 0:00:03]} Bxh3 {[%emt 0:01:36]} 18. Bd2 {[%emt 0:10:25]} Qf6 {[%emt 0:01:34]} 19. Bxh7+ {[%emt 0:09:41]} Kh8 {[%emt 0:06:32]} 20. Bf5 {[%emt 0:04:40]} Nxf5 {[%emt 0:02:49]} 21. Nxd5 {[%emt 0:00:05]} Qg6 {[%emt 0:01:07]} 0-1

[Event "USA Junior-ch 2022"]
[Site "Saint Louis"]
[Date "2022.07.15"]
[Round "8.1"]
[White "Brodsky, David"]
[Black "Espinosa, Pedro"]
[Result "1-0"]
[ECO "B67"]
[WhiteElo "2496"]
[BlackElo "2130"]
[Annotator "ChessBase"]
[PlyCount "81"]
[EventDate "2022.07.07"]
[EventType "tourn"]
[EventCountry "USA"]
[SourceTitle "playchess.com"]
[Source "ChessBase"]
[SourceQuality "1"]
[TimeControl "40/5400+30:1800+30"]

1. e4 {[%emt 0:00:01]} c5 {[%emt 0:00:12]} 2. Nf3 {[%emt 0:00:05]} d6 {[%emt 0:00:07]} 3. d4 {[%emt 0:00:04]} cxd4 {[%emt 0:00:05]} 4. Nxd4 {[%emt 0:00:04]} Nf6 {[%emt 0:00:07]} 5. Nc3 {[%emt 0:00:02]} Nc6 {[%emt 0:00:06]} 6. Bg5 {[%emt 0:00:04]} e6 {[%emt 0:00:06]} 7. Qd2 {[%emt 0:00:04]} a6 {[%emt 0:00:07]} 8. O-O-O {[%emt 0:00:05]} Bd7 {[%emt 0:00:05]} 9. Kb1 {[%emt 0:00:04]} Nxd4 {[%emt 0:00:31]} 10. Qxd4 {[%emt 0:00:05]} Be7 {[%emt 0:00:08]} 11. f3 {[%emt 0:00:07]} Qc7 {[%emt 0:00:46]} 12. Qd2 {[%emt 0:00:08]} b5 {[%emt 0:00:45]} 13. g4 {[%emt 0:00:09]} b4 {[%emt 0:03:31]} 14. Ne2 {[%emt 0:00:12]} a5 {[%emt 0:00:38]} 15. Be3 {[%emt 0:03:26]} a4 {[%emt 0:11:51]} 16. g5 {[%emt 0:04:21]} Nh5 {[%emt 0:00:43]} 17. Qxb4 {[%emt 0:02:07]} O-O {[%emt 0:02:20]} 18. Ng3 {[%emt 0:12:05]} Rab8 {[%emt 0:07:16]} 19. Qd2 {[%emt 0:00:56]} g6 {[%emt 0:00:48]} 20. Nxh5 {[%emt 0:00:55]} gxh5 {[%emt 0:00:56]} 21. c4 {[%emt 0:09:21]} d5 {[%emt 0:09:29]} 22. exd5 {[%emt 0:15:15]} Ba3 {[%emt 0:03:52]} 23. d6 {[%emt 0:01:21]} Qc6 {[%emt 0:08:24]} 24. Bd4 {[%emt 0:01:57]} Bxb2 {[%emt 0:01:47]} 25. Bxb2 {[%emt 0:00:11]} a3 {[%emt 0:00:13]} 26. Qc3 {[%emt 0:01:16]} Rxb2+ {[%emt 0:02:18]} 27. Ka1 {[%emt 0:00:07]} Rfb8 {[%emt 0:04:09]} 28. Bd3 {[%emt 0:01:43]} Qc5 {[%emt 0:08:39]} 29. Be4 {[%emt 0:11:36]} R8b4 {[%emt 0:07:12]} 30. Qf6 {[%emt 0:05:36]} Rb8 {[%emt 0:16:54]} 31. g6 {[%emt 0:04:32]} fxg6 {[%emt 0:06:09]} 32. Bxg6 {[%emt 0:00:14]} Rxa2+ {[%emt 0:02:01]} 33. Kxa2 {[%emt 0:00:07]} Qf2+ {[%emt 0:00:33]} 34. Ka1 {[%emt 0:00:05]} Qb2+ {[%emt 0:00:10]} 35. Qxb2 {[%emt 0:00:06]} axb2+ {[%emt 0:00:04]} 36. Kb1 {[%emt 0:00:16]} hxg6 {[%emt 0:00:09]} 37. Rd2 {[%emt 0:00:08]} Rb4 {[%emt 0:01:11]} 38. Rxb2 {[%emt 0:01:12]} Rxc4 {[%emt 0:00:08]} 39. Rb7 {[%emt 0:00:10]} Bc6 {[%emt 0:00:50]} 40. d7 {[%emt 0:00:09]} Rd4 {[%emt 0:00:10]} 41. Rb8+ {[%emt 0:30:04]} 1-0

[Event "USA Junior-ch 2022"]
[Site "Saint Louis"]
[Date "2022.07.15"]
[Round "8.2"]
[White "Hong, Andrew"]
[Black "Liang, Awonder"]
[Result "1/2-1/2"]
[ECO "E51"]
[WhiteElo "2504"]
[BlackElo "2625"]
[Annotator "ChessBase"]
[PlyCount "153"]
[EventDate "2022.07.07"]
[EventType "tourn"]
[EventCountry "USA"]
[SourceTitle "playchess.com"]
[Source "ChessBase"]
[SourceQuality "1"]
[TimeControl "40/5400+30:1800+30"]

1. d4 {[%emt 0:00:04]} Nf6 {[%emt 0:00:08]} 2. c4 {[%emt 0:00:05]} e6 {[%emt 0:00:06]} 3. Nc3 {[%emt 0:00:16]} Bb4 {[%emt 0:00:03]} 4. e3 {[%emt 0:00:07]} O-O {[%emt 0:00:16]} 5. Nf3 {[%emt 0:00:06]} d5 {[%emt 0:00:20]} 6. Bd2 {[%emt 0:00:24]} b6 {[%emt 0:04:47]} 7. cxd5 {[%emt 0:00:31]} exd5 {[%emt 0:00:01]} 8. Rc1 {[%emt 0:00:11]} a6 {[%emt 0:00:53]} 9. Bd3 {[%emt 0:00:38]} Bb7 {[%emt 0:00:02]} 10. Ne5 {[%emt 0:00:38]} Bd6 {[%emt 0:00:42]} 11. f4 {[%emt 0:00:12]} c5 {[%emt 0:00:13]} 12. Qf3 {[%emt 0:00:53]} Nc6 {[%emt 0:02:56]} 13. Qh3 {[%emt 0:00:40]} g6 {[%emt 0:06:52]} 14. O-O {[%emt 0:00:23]} Rc8 {[%emt 0:15:11]} 15. Be1 {[%emt 0:15:12]} cxd4 {[%emt 0:07:58]} 16. Nxc6 {[%emt 0:04:51]} Rxc6 {[%emt 0:05:41]} 17. exd4 {[%emt 0:00:15]} Nh5 {[%emt 0:06:00]} 18. Bh4 {[%emt 0:19:58]} Be7 {[%emt 0:01:11]} 19. Bxe7 {[%emt 0:02:34]} Qxe7 {[%emt 0:00:01]} 20. g4 {[%emt 0:15:17]} Ng7 {[%emt 0:04:54]} 21. f5 {[%emt 0:06:05]} Qb4 {[%emt 0:12:39]} 22. Qe3 {[%emt 0:05:15]} Qxb2 {[%emt 0:05:02]} 23. fxg6 {[%emt 0:09:22]} hxg6 {[%emt 0:06:41]} 24. Rc2 {[%emt 0:02:13]} Qa3 {[%emt 0:03:59]} 25. Nxd5 {[%emt 0:00:52]} Re8 {[%emt 0:00:11]} 26. Qd2 {[%emt 0:10:20]} Qd6 {[%emt 0:06:09]} 27. Nf6+ {[%emt 0:00:34]} Qxf6 {[%emt 0:00:02]} 28. Rxf6 {[%emt 0:00:08]} Rxf6 {[%emt 0:00:05]} 29. Rc1 {[%emt 0:01:35]} Ne6 {[%emt 0:03:00]} 30. Rf1 {[%emt 0:01:52]} Rxf1+ {[%emt 0:00:02]} 31. Bxf1 {[%emt 0:01:29]} Rd8 {[%emt 0:00:07]} 32. Qb4 {[%emt 0:01:03]} b5 {[%emt 0:00:54]} 33. Qe7 {[%emt 0:00:08]} Bf3 {[%emt 0:00:14]} 34. Bg2 {[%emt 0:02:18]} Bxg2 {[%emt 0:00:06]} 35. Kxg2 {[%emt 0:00:02]} Rxd4 {[%emt 0:00:09]} 36. Kf3 {[%emt 0:00:35]} Rd3+ {[%emt 0:01:58]} 37. Ke2 {[%emt 0:00:28]} Nf4+ {[%emt 0:01:01]} 38. Kf2 {[%emt 0:00:36]} Ne6 {[%emt 0:02:06]} 39. a4 {[%emt 0:00:40]} Kg7 {[%emt 0:02:14]} 40. axb5 {[%emt 0:00:51]} axb5 {[%emt 0:00:01]} 41. Qb7 {[%emt 0:06:49]} Rd2+ {[%emt 0:00:56]} 42. Kg3 {[%emt 0:01:04]} Rd3+ {[%emt 0:00:05]} 43. Kf2 {[%emt 0:00:06]} Rd4 {[%emt 0:00:06]} 44. Qxb5 {[%emt 0:02:07]} Rxg4 {[%emt 0:00:22]} 45. Qb2+ {[%emt 0:00:54]} Kh7 {[%emt 0:00:07]} 46. Qb7 {[%emt 0:00:26]} Rf4+ {[%emt 0:00:05]} 47. Kg3 {[%emt 0:00:07]} Rf5 {[%emt 0:00:05]} 48. Qb1 {[%emt 0:00:38]} Rg5+ {[%emt 0:00:11]} 49. Kf2 {[%emt 0:00:05]} Rf5+ {[%emt 0:00:51]} 50. Kg3 {[%emt 0:00:15]} Ng7 {[%emt 0:00:31]} 51. Qb7 {[%emt 0:00:31]} Nh5+ {[%emt 0:00:07]} 52. Kg2 {[%emt 0:00:03]} Nf4+ {[%emt 0:00:07]} 53. Kg3 {[%emt 0:00:09]} Nd3 {[%emt 0:00:12]} 54. Qb1 {[%emt 0:00:54]} Ne5 {[%emt 0:00:14]} 55. Qb7 {[%emt 0:00:36]} Kg7 {[%emt 0:00:12]} 56. Qb2 {[%emt 0:00:07]} Rg5+ {[%emt 0:00:22]} 57. Kf2 {[%emt 0:01:32]} f6 {[%emt 0:03:50]} 58. Qb8 {[%emt 0:01:10]} Rf5+ {[%emt 0:00:15]} 59. Kg2 {[%emt 0:00:09]} Rg5+ {[%emt 0:00:50]} 60. Kf2 {[%emt 0:00:02]} Rh5 {[%emt 0:00:42]} 61. Kg3 {[%emt 0:00:25]} Rf5 {[%emt 0:00:08]} 62. Kg2 {[%emt 0:01:30]} Rf4 {[%emt 0:00:09]} 63. Kg3 {[%emt 0:01:06]} g5 {[%emt 0:00:21]} 64. Qb7+ {[%emt 0:00:53]} Kg6 {[%emt 0:00:10]} 65. Qb1+ {[%emt 0:00:24]} Kh6 {[%emt 0:00:02]} 66. Qb8 {[%emt 0:00:07]} Ng6 {[%emt 0:01:08]} 67. Qd8 {[%emt 0:00:29]} f5 {[%emt 0:00:59]} 68. Qf6 {[%emt 0:01:12]} Kh5 {[%emt 0:01:02]} 69. Qg7 {[%emt 0:09:12]} g4 {[%emt 0:01:44]} 70. Qh7+ {[%emt 0:01:10]} Kg5 {[%emt 0:00:01]} 71. h4+ {[%emt 0:00:06]} gxh3 {[%emt 0:00:56]} 72. Qxh3 {[%emt 0:00:59]} Nh4 {[%emt 0:01:47]} 73. Qh1 {[%emt 0:01:05]} Rg4+ {[%emt 0:00:02]} 74. Kf2 {[%emt 0:02:07]} Rg2+ {[%emt 0:00:12]} 75. Kf1 {[%emt 0:00:04]} Kg4 {[%emt 0:00:10]} 76. Qxg2+ {[%emt 0:00:20]} Nxg2 {[%emt 0:00:07]} 77. Kxg2 {[%emt 0:00:03]} 1/2-1/2

[Event "USA Junior-ch 2022"]
[Site "Saint Louis"]
[Date "2022.07.15"]
[Round "8.3"]
[White "Wang, Justin"]
[Black "Yip, Carissa"]
[Result "1/2-1/2"]
[ECO "C84"]
[WhiteElo "2469"]
[BlackElo "2416"]
[Annotator "ChessBase"]
[PlyCount "88"]
[EventDate "2022.07.07"]
[EventType "tourn"]
[EventCountry "USA"]
[SourceTitle "playchess.com"]
[Source "ChessBase"]
[SourceQuality "1"]
[TimeControl "40/5400+30:1800+30"]

1. e4 {[%emt 0:00:15]} e5 {[%emt 0:00:14]} 2. Nf3 {[%emt 0:00:30]} Nc6 {[%emt 0:00:05]} 3. Bb5 {[%emt 0:00:10]} a6 {[%emt 0:00:04]} 4. Ba4 {[%emt 0:00:44]} Nf6 {[%emt 0:00:07]} 5. d4 {[%emt 0:09:21]} exd4 {[%emt 0:09:35]} 6. O-O {[%emt 0:03:23]} Be7 {[%emt 0:03:20]} 7. e5 {[%emt 0:00:26]} Ne4 {[%emt 0:07:43]} 8. Nxd4 {[%emt 0:01:59]} Nxd4 {[%emt 0:02:13]} 9. Qxd4 {[%emt 0:00:04]} Nc5 {[%emt 0:00:08]} 10. Nc3 {[%emt 0:05:22]} O-O {[%emt 0:02:48]} 11. Rd1 {[%emt 0:05:53]} d6 {[%emt 0:04:05]} 12. exd6 {[%emt 0:00:23]} Bxd6 {[%emt 0:00:59]} 13. Bb3 {[%emt 0:00:57]} Nxb3 {[%emt 0:01:20]} 14. cxb3 {[%emt 0:00:05]} Qe7 {[%emt 0:04:55]} 15. Nd5 {[%emt 0:01:08]} Qe5 {[%emt 0:02:47]} 16. Bf4 {[%emt 0:01:00]} Qxd4 {[%emt 0:02:54]} 17. Rxd4 {[%emt 0:00:03]} Bxf4 {[%emt 0:03:28]} 18. Nxf4 {[%emt 0:06:02]} c6 {[%emt 0:02:27]} 19. Rad1 {[%emt 0:02:39]} Bf5 {[%emt 0:01:52]} 20. f3 {[%emt 0:00:06]} Rae8 {[%emt 0:03:21]} 21. Kf2 {[%emt 0:00:53]} f6 {[%emt 0:01:22]} 22. b4 {[%emt 0:04:12]} Rf7 {[%emt 0:01:57]} 23. R1d2 {[%emt 0:01:51]} Rfe7 {[%emt 0:00:12]} 24. g4 {[%emt 0:02:58]} Bc8 {[%emt 0:00:14]} 25. Nd3 {[%emt 0:00:28]} Rd7 {[%emt 0:03:32]} 26. Rxd7 {[%emt 0:00:34]} Bxd7 {[%emt 0:00:04]} 27. Nc5 {[%emt 0:00:06]} Bc8 {[%emt 0:00:03]} 28. a4 {[%emt 0:07:06]} Kf8 {[%emt 0:03:17]} 29. a5 {[%emt 0:00:04]} Ke7 {[%emt 0:02:26]} 30. Rd4 {[%emt 0:00:41]} Rd8 {[%emt 0:00:24]} 31. Ke3 {[%emt 0:00:14]} Rh8 {[%emt 0:01:27]} 32. Re4+ {[%emt 0:11:42]} Kf7 {[%emt 0:01:25]} 33. f4 {[%emt 0:01:38]} f5 {[%emt 0:09:51]} 34. gxf5 {[%emt 0:00:33]} Bxf5 {[%emt 0:00:59]} 35. Re5 {[%emt 0:00:54]} Bc8 {[%emt 0:00:06]} 36. Ne4 {[%emt 0:00:07]} Rd8 {[%emt 0:09:15]} 37. Ng5+ {[%emt 0:00:21]} Kg6 {[%emt 0:00:07]} 38. Re7 {[%emt 0:02:06]} Bf5 {[%emt 0:00:23]} 39. Nf3 {[%emt 0:00:15]} Rd3+ {[%emt 0:00:31]} 40. Ke2 {[%emt 0:00:12]} Rb3 {[%emt 0:00:35]} 41. Ne5+ {[%emt 0:32:44]} Kf6 {[%emt 0:31:30]} 42. Rxb7 {[%emt 0:00:06]} g5 {[%emt 0:02:06]} 43. Nd7+ {[%emt 0:06:03]} Bxd7 {[%emt 0:02:32]} 44. Rxd7 {[%emt 0:00:02]} gxf4 {[%emt 0:03:40]} 1/2-1/2

[Event "USA Junior-ch 2022"]
[Site "Saint Louis"]
[Date "2022.07.15"]
[Round "8.4"]
[White "Yoo, Christopher Woojin"]
[Black "Mishra, Abhimanyu"]
[Result "1-0"]
[ECO "D02"]
[WhiteElo "2550"]
[BlackElo "2553"]
[Annotator "ChessBase"]
[PlyCount "111"]
[EventDate "2022.07.07"]
[EventType "tourn"]
[EventCountry "USA"]
[SourceTitle "playchess.com"]
[Source "ChessBase"]
[SourceQuality "1"]
[TimeControl "40/5400+30:1800+30"]

1. d4 {[%emt 0:00:05]} d5 {[%emt 0:00:05]} 2. Nf3 {[%emt 0:00:05]} Nf6 {[%emt 0:00:09]} 3. Bf4 {[%emt 0:00:04]} c5 {[%emt 0:00:23]} 4. e3 {[%emt 0:00:07]} Nc6 {[%emt 0:00:33]} 5. Nbd2 {[%emt 0:00:05]} Qb6 {[%emt 0:00:51]} 6. dxc5 {[%emt 0:00:06]} Qxb2 {[%emt 0:00:17]} 7. c4 {[%emt 0:00:08]} Bf5 {[%emt 0:01:20]} 8. g4 {[%emt 0:00:05]} Be4 {[%emt 0:01:53]} 9. Bg2 {[%emt 0:00:23]} g5 {[%emt 0:01:12]} 10. Bxg5 {[%emt 0:02:22]} O-O-O {[%emt 0:00:44]} 11. O-O {[%emt 0:18:58]} Nxg4 {[%emt 0:15:51]} 12. Qa4 {[%emt 0:04:17]} Qb4 {[%emt 0:20:15]} 13. Qxb4 {[%emt 0:01:50]} Nxb4 {[%emt 0:00:02]} 14. Nxe4 {[%emt 0:05:42]} dxe4 {[%emt 0:00:05]} 15. Nd4 {[%emt 0:01:12]} Rg8 {[%emt 0:04:42]} 16. Bh4 {[%emt 0:03:21]} Rd7 {[%emt 0:14:46]} 17. Rab1 {[%emt 0:10:06]} e5 {[%emt 0:03:40]} 18. Nf5 {[%emt 0:01:08]} Nd3 {[%emt 0:01:04]} 19. c6 {[%emt 0:06:03]} bxc6 {[%emt 0:00:33]} 20. Kh1 {[%emt 0:00:46]} Nc5 {[%emt 0:05:10]} 21. f3 {[%emt 0:01:08]} exf3 {[%emt 0:04:53]} 22. Bxf3 {[%emt 0:00:06]} Rg6 {[%emt 0:05:10]} 23. Bg3 {[%emt 0:01:21]} Bd6 {[%emt 0:01:34]} 24. Bxc6 {[%emt 0:01:50]} Rd8 {[%emt 0:00:58]} 25. Bd5 {[%emt 0:02:46]} Nh6 {[%emt 0:03:44]} 26. Nxd6+ {[%emt 0:01:58]} Rdxd6 {[%emt 0:01:53]} 27. Bxe5 {[%emt 0:01:27]} Rb6 {[%emt 0:00:12]} 28. Rxb6 {[%emt 0:04:01]} axb6 {[%emt 0:00:11]} 29. Bxf7 {[%emt 0:00:30]} Nxf7 {[%emt 0:01:19]} 30. Rxf7 {[%emt 0:00:05]} Ne4 {[%emt 0:01:36]} 31. Rf4 {[%emt 0:01:30]} Nd2 {[%emt 0:02:46]} 32. Bc3 {[%emt 0:00:56]} Rd6 {[%emt 0:00:38]} 33. Bb4 {[%emt 0:00:49]} Rd3 {[%emt 0:01:03]} 34. Kg2 {[%emt 0:00:27]} Nb1 {[%emt 0:01:53]} 35. Kf2 {[%emt 0:00:47]} Nc3 {[%emt 0:01:15]} 36. Rd4 {[%emt 0:00:25]} Nd1+ {[%emt 0:00:58]} 37. Ke2 {[%emt 0:01:38]} Rxd4 {[%emt 0:00:19]} 38. exd4 {[%emt 0:00:04]} Nb2 {[%emt 0:00:12]} 39. c5 {[%emt 0:00:23]} bxc5 {[%emt 0:00:14]} 40. dxc5 {[%emt 0:00:58]} Kd7 {[%emt 0:01:13]} 41. Bc3 {[%emt 0:30:23]} Nc4 {[%emt 0:32:11]} 42. Kd3 {[%emt 0:00:35]} Na3 {[%emt 0:00:11]} 43. Bb4 {[%emt 0:00:22]} Nb5 {[%emt 0:00:22]} 44. a4 {[%emt 0:00:54]} Nc7 {[%emt 0:01:27]} 45. Ba5 {[%emt 0:00:48]} Ne6 {[%emt 0:00:00]} 46. Bb6 {[%emt 0:00:00]} Kc6 {[%emt 0:00:00]} 47. Kc4 {[%emt 0:00:00]} Nf4 {[%emt 0:00:00]} 48. a5 {[%emt 0:00:00]} Nd5 {[%emt 0:00:00]} 49. Kd4 {[%emt 0:00:00]} Nb4 {[%emt 0:00:00]} 50. Ke4 {[%emt 0:00:00]} Kb5 {[%emt 0:00:00]} 51. h4 {[%emt 0:00:00]} Nc6 {[%emt 0:00:00]} 52. h5 {[%emt 0:00:00]} Nb4 {[%emt 0:00:00]} 53. h6 {[%emt 0:00:00]} Na2 {[%emt 0:00:00]} 54. Kf5 {[%emt 0:00:00]} Nc3 {[%emt 0:00:00]} 55. Ke5 {[%emt 0:00:00]} Ne2 {[%emt 0:00:00]} 56. Kf6 {[%emt 0:00:00]} 1-0

[Event "USA Junior-ch 2022"]
[Site "Saint Louis"]
[Date "2022.07.15"]
[Round "8.5"]
[White "Daggupati, Balaji"]
[Black "Jacobson, Brandon"]
[Result "1-0"]
[ECO "C70"]
[WhiteElo "2488"]
[BlackElo "2544"]
[Annotator "ChessBase"]
[PlyCount "67"]
[EventDate "2022.07.07"]
[EventType "tourn"]
[EventCountry "USA"]
[SourceTitle "playchess.com"]
[Source "ChessBase"]
[SourceQuality "1"]
[TimeControl "40/5400+30:1800+30"]

1. e4 {[%emt 0:00:03]} e5 {[%emt 0:00:05]} 2. Nf3 {[%emt 0:00:04]} Nc6 {[%emt 0:00:06]} 3. Bb5 {[%emt 0:00:04]} a6 {[%emt 0:00:06]} 4. Ba4 {[%emt 0:00:03]} g6 {[%emt 0:00:13]} 5. d4 {[%emt 0:01:14]} exd4 {[%emt 0:00:51]} 6. Nxd4 {[%emt 0:00:36]} Na5 {[%emt 0:00:17]} 7. Nb3 {[%emt 0:05:14]} Nc6 {[%emt 0:02:14]} 8. Bxc6 {[%emt 0:12:13]} bxc6 {[%emt 0:17:25]} 9. Qd4 {[%emt 0:07:19]} f6 {[%emt 0:00:10]} 10. O-O {[%emt 0:00:26]} Bg7 {[%emt 0:01:04]} 11. Nc3 {[%emt 0:07:11]} Qe7 {[%emt 0:04:54]} 12. Qa4 {[%emt 0:17:30]} Nh6 {[%emt 0:26:31]} 13. Bf4 {[%emt 0:00:49]} Ra7 {[%emt 0:00:35]} 14. Be3 {[%emt 0:04:29]} Ra8 {[%emt 0:01:00]} 15. Bf4 {[%emt 0:01:41]} Ra7 {[%emt 0:00:03]} 16. Qd4 {[%emt 0:02:35]} Rb7 {[%emt 0:00:04]} 17. Na5 {[%emt 0:01:46]} Rxb2 {[%emt 0:08:38]} 18. Nd5 {[%emt 0:02:31]} cxd5 {[%emt 0:00:09]} 19. Qxb2 {[%emt 0:00:05]} dxe4 {[%emt 0:00:08]} 20. Qb8 {[%emt 0:00:44]} O-O {[%emt 0:00:04]} 21. Qxc7 {[%emt 0:00:04]} Qe6 {[%emt 0:00:27]} 22. Rab1 {[%emt 0:02:56]} Nf5 {[%emt 0:10:15]} 23. Rb6 {[%emt 0:02:41]} Qe8 {[%emt 0:02:09]} 24. Qc4+ {[%emt 0:04:10]} Qf7 {[%emt 0:02:42]} 25. Qxe4 {[%emt 0:02:13]} Qxa2 {[%emt 0:00:05]} 26. Nb3 {[%emt 0:01:25]} Kh8 {[%emt 0:00:50]} 27. Rb8 {[%emt 0:01:24]} d5 {[%emt 0:04:39]} 28. Qxd5 {[%emt 0:00:14]} Qa4 {[%emt 0:00:04]} 29. Qc5 {[%emt 0:01:10]} Qd7 {[%emt 0:00:26]} 30. Re1 {[%emt 0:01:32]} g5 {[%emt 0:00:20]} 31. Bd2 {[%emt 0:00:16]} Nh4 {[%emt 0:00:46]} 32. Re4 {[%emt 0:03:30]} Rg8 {[%emt 0:01:28]} 33. h3 {[%emt 0:02:55]} a5 {[%emt 0:06:44]} 34. Re7 {[%emt 0:01:21]} 1-0